[Event "Titled Tuesday Blitz February 07 Late 2023"]
[White "Carlsen, Magnus"]
[Black "Sztokbant, Bernardo Vainzoff"]
[WhiteFideId "1503014"]
[BlackFideId "2115956"]
[WhiteElo "2853"]
[BlackElo "2213"]
[Result "1/2-1/2"]
[Round "01"]
[TimeControl "180+2"]
[Date "2023.02.07"]
[WhiteClock "0:00:02"]
[BlackClock "0:00:02"]

1. d4 {[%clk 0:02:57]}  d5 {[%clk 0:01:56]} 2. Bf4 {[%clk 0:02:36]}  Nf6 {[%clk 0:01:48]} 3. e3 {[%clk 0:02:35]}  Bf5 {[%clk 0:01:47]} 4. c4 {[%clk 0:02:31]}  c6 {[%clk 0:01:46]} 5. Nc3 {[%clk 0:02:30]}  e6 {[%clk 0:01:46]} 6. Qb3 {[%clk 0:02:29]}  Qb6 {[%clk 0:01:46]} 7. c5 {[%clk 0:02:29]}  Qxb3 {[%clk 0:01:41]} 8. axb3 {[%clk 0:02:30]}  Nbd7 {[%clk 0:01:37]} 9. b4 {[%clk 0:02:30]}  Nh5 {[%clk 0:01:31]} 10. b5 {[%clk 0:02:15]}  Nxf4 {[%clk 0:01:31]} 11. exf4 {[%clk 0:02:16]}  Be7 {[%clk 0:01:17]} 12. Nf3 {[%clk 0:02:14]}  O-O {[%clk 0:01:15]} 13. b4 {[%clk 0:02:06]}  f6 {[%clk 0:01:10]} 14. bxc6 {[%clk 0:01:47]}  bxc6 {[%clk 0:01:10]} 15. b5 {[%clk 0:01:48]}  cxb5 {[%clk 0:01:07]} 16. Bxb5 {[%clk 0:01:47]}  Rfd8 {[%clk 0:00:57]} 17. Nh4 {[%clk 0:01:45]}  Bg4 {[%clk 0:00:52]} 18. h3 {[%clk 0:01:45]}  Bh5 {[%clk 0:00:50]} 19. f5 {[%clk 0:01:46]}  Bf7 {[%clk 0:00:45]} 20. fxe6 {[%clk 0:01:42]}  Bxe6 {[%clk 0:00:46]} 21. Ra6 {[%clk 0:01:26]}  Kf7 {[%clk 0:00:38]} 22. Kd2 {[%clk 0:01:25]}  f5 {[%clk 0:00:37]} 23. Rxe6 {[%clk 0:01:11]}  Kxe6 {[%clk 0:00:35]} 24. Re1+ {[%clk 0:01:12]}  Kf7 {[%clk 0:00:34]} 25. Nxf5 {[%clk 0:01:12]}  Bg5+ {[%clk 0:00:26]} 26. Kd3 {[%clk 0:01:11]}  Nf6 {[%clk 0:00:13]} 27. g3 {[%clk 0:01:10]}  g6 {[%clk 0:00:12]} 28. Nd6+ {[%clk 0:01:10]}  Rxd6 {[%clk 0:00:12]} 29. cxd6 {[%clk 0:01:09]}  Rd8 {[%clk 0:00:11]} 30. f4 {[%clk 0:01:03]}  Bh6 {[%clk 0:00:11]} 31. Re7+ {[%clk 0:01:02]}  Kf8 {[%clk 0:00:11]} 32. Rxa7 {[%clk 0:00:56]}  Rxd6 {[%clk 0:00:11]} 33. Ba4 {[%clk 0:00:48]}  Nh5 {[%clk 0:00:09]} 34. Ne2 {[%clk 0:00:37]}  Re6 {[%clk 0:00:07]} 35. Bb3 {[%clk 0:00:24]}  Nf6 {[%clk 0:00:06]} 36. Nc3 {[%clk 0:00:24]}  Re1 {[%clk 0:00:02]} 37. Nxd5 {[%clk 0:00:20]}  Nxd5 {[%clk 0:00:03]} 38. Bxd5 {[%clk 0:00:20]}  Rg1 {[%clk 0:00:04]} 39. g4 {[%clk 0:00:15]}  Rg3+ {[%clk 0:00:02]} 40. Ke4 {[%clk 0:00:15]}  Rxh3 {[%clk 0:00:02]} 41. g5 {[%clk 0:00:14]}  Bg7 {[%clk 0:00:02]} 42. Rf7+ {[%clk 0:00:13]}  Kg8 {[%clk 0:00:03]} 43. Be6 {[%clk 0:00:09]}  Rh1 {[%clk 0:00:02]} 44. Ra7+ {[%clk 0:00:07]}  Kf8 {[%clk 0:00:02]} 45. d5 {[%clk 0:00:05]}  Re1+ {[%clk 0:00:03]} 46. Kf3 {[%clk 0:00:06]}  Rf1+ {[%clk 0:00:03]} 47. Ke3 {[%clk 0:00:04]}  Rd1 {[%clk 0:00:02]} 48. Rf7+ {[%clk 0:00:03]}  Kg8 {[%clk 0:00:02]} 49. Rd7+ {[%clk 0:00:03]}  Kf8 {[%clk 0:00:03]} 50. d6 {[%clk 0:00:04]}  Re1+ {[%clk 0:00:01]} 51. Kf3 {[%clk 0:00:04]}  Rxe6 {[%clk 0:00:02]} 52. Rd8+ {[%clk 0:00:04]}  Kf7 {[%clk 0:00:03]} 53. Rd7+ {[%clk 0:00:04]}  Kf8 {[%clk 0:00:03]} 54. Rd8+ {[%clk 0:00:02]}  Re8 {[%clk 0:00:03]} 55. Rd7 {[%clk 0:00:02]}  Re6 {[%clk 0:00:02]} 1/2-1/2


[Site "https://www.chess.com"]

[Event "Titled Tuesday Blitz February 07 Late 2023"]
[White "Toncheva, Nadya"]
[Black "So, Wesley"]
[WhiteFideId "2924056"]
[BlackFideId "5202213"]
[WhiteElo "2295"]
[BlackElo "2760"]
[Result "0-1"]
[Round "01"]
[TimeControl "180+2"]
[Date "2023.02.07"]
[WhiteClock "0:00:03"]
[BlackClock "0:00:01"]

1. d4 {[%clk 0:03:00]}  Nf6 {[%clk 0:02:59]} 2. c4 {[%clk 0:03:00]}  c6 {[%clk 0:02:58]} 3. Nc3 {[%clk 0:03:01]}  d5 {[%clk 0:02:59]} 4. e3 {[%clk 0:03:01]}  e6 {[%clk 0:02:55]} 5. Nf3 {[%clk 0:03:01]}  Nbd7 {[%clk 0:02:56]} 6. Bd3 {[%clk 0:03:01]}  dxc4 {[%clk 0:02:56]} 7. Bxc4 {[%clk 0:03:02]}  b5 {[%clk 0:02:56]} 8. Bd3 {[%clk 0:03:03]}  a6 {[%clk 0:02:56]} 9. a4 {[%clk 0:03:02]}  Bb7 {[%clk 0:02:48]} 10. O-O {[%clk 0:03:01]}  b4 {[%clk 0:02:46]} 11. Ne4 {[%clk 0:03:01]}  c5 {[%clk 0:02:47]} 12. Nxf6+ {[%clk 0:03:01]}  Nxf6 {[%clk 0:02:42]} 13. Qe2 {[%clk 0:02:59]}  cxd4 {[%clk 0:02:32]} 14. Nxd4 {[%clk 0:02:56]}  Bd6 {[%clk 0:02:28]} 15. b3 {[%clk 0:02:49]}  O-O {[%clk 0:02:16]} 16. Bb2 {[%clk 0:02:48]}  g6 {[%clk 0:02:07]} 17. Nf3 {[%clk 0:02:46]}  Nd5 {[%clk 0:02:03]} 18. Rac1 {[%clk 0:02:42]}  Qe7 {[%clk 0:02:02]} 19. Rfd1 {[%clk 0:02:39]}  a5 {[%clk 0:02:00]} 20. Bb5 {[%clk 0:02:25]}  Rfc8 {[%clk 0:01:58]} 21. Qd2 {[%clk 0:02:17]}  Rxc1 {[%clk 0:01:53]} 22. Rxc1 {[%clk 0:02:15]}  Rd8 {[%clk 0:01:50]} 23. Qe2 {[%clk 0:01:58]}  e5 {[%clk 0:01:42]} 24. Bc6 {[%clk 0:01:43]}  Bxc6 {[%clk 0:01:26]} 25. Rxc6 {[%clk 0:01:44]}  e4 {[%clk 0:01:23]} 26. Nd2 {[%clk 0:01:41]}  Nc3 {[%clk 0:01:22]} 27. Bxc3 {[%clk 0:01:13]}  bxc3 {[%clk 0:01:23]} 28. Nf1 {[%clk 0:01:13]}  Bb4 {[%clk 0:01:16]} 29. Rc4 {[%clk 0:00:57]}  f5 {[%clk 0:01:12]} 30. Rc6 {[%clk 0:00:56]}  Qd7 {[%clk 0:01:09]} 31. Qc4+ {[%clk 0:00:54]}  Qd5 {[%clk 0:01:09]} 32. Qa6 {[%clk 0:00:34]}  Kg7 {[%clk 0:01:00]} 33. Qb7+ {[%clk 0:00:32]}  Rd7 {[%clk 0:00:58]} 34. Qc8 {[%clk 0:00:29]}  Rf7 {[%clk 0:00:49]} 35. h3 {[%clk 0:00:26]}  Qxb3 {[%clk 0:00:46]} 36. Ng3 {[%clk 0:00:20]}  Qd1+ {[%clk 0:00:46]} 37. Kh2 {[%clk 0:00:20]}  Qd7 {[%clk 0:00:46]} 38. Qa8 {[%clk 0:00:19]}  Qb7 {[%clk 0:00:46]} 39. Qe8 {[%clk 0:00:19]}  Re7 {[%clk 0:00:46]} 40. Qc8 {[%clk 0:00:09]}  Qxc8 {[%clk 0:00:46]} 41. Rxc8 {[%clk 0:00:10]}  h5 {[%clk 0:00:46]} 42. Ne2 {[%clk 0:00:10]}  Rd7 {[%clk 0:00:36]} 43. Nxc3 {[%clk 0:00:10]}  Rd2 {[%clk 0:00:37]} 44. Kg3 {[%clk 0:00:07]}  Bd6+ {[%clk 0:00:35]} 45. f4 {[%clk 0:00:05]}  h4+ {[%clk 0:00:35]} 46. Kxh4 {[%clk 0:00:05]}  Rxg2 {[%clk 0:00:34]} 47. Nd5 {[%clk 0:00:05]}  Rd2 {[%clk 0:00:30]} 48. Nb6 {[%clk 0:00:04]}  Re2 {[%clk 0:00:26]} 49. Nd5 {[%clk 0:00:04]}  Rd2 {[%clk 0:00:25]} 50. Nb6 {[%clk 0:00:04]}  Bb4 {[%clk 0:00:23]} 51. Rc7+ {[%clk 0:00:03]}  Kh6 {[%clk 0:00:23]} 52. Kg3 {[%clk 0:00:03]}  Re2 {[%clk 0:00:23]} 53. Nc4 {[%clk 0:00:03]}  Be1# {[%clk 0:00:01]} 0-1


[Site "https://www.chess.com"]

[Event "Titled Tuesday Blitz February 07 Late 2023"]
[White "Naroditsky, Daniel"]
[Black "Krallis, Christos"]
[WhiteFideId "2026961"]
[BlackFideId "4298896"]
[WhiteElo "2618"]
[BlackElo "2344"]
[Result "1-0"]
[Round "01"]
[TimeControl "180+2"]
[Date "2023.02.07"]
[WhiteClock "0:00:17"]
[BlackClock "0:00:05"]

1. e4 {[%clk 0:02:58]}  e5 {[%clk 0:02:59]} 2. Nf3 {[%clk 0:02:52]}  Nc6 {[%clk 0:03:00]} 3. Bb5 {[%clk 0:02:52]}  a6 {[%clk 0:02:59]} 4. Ba4 {[%clk 0:02:52]}  Nf6 {[%clk 0:02:59]} 5. O-O {[%clk 0:02:52]}  Be7 {[%clk 0:02:59]} 6. Re1 {[%clk 0:02:52]}  b5 {[%clk 0:03:00]} 7. Bb3 {[%clk 0:02:52]}  O-O {[%clk 0:03:00]} 8. d4 {[%clk 0:02:52]}  d6 {[%clk 0:02:58]} 9. c3 {[%clk 0:02:52]}  Bg4 {[%clk 0:02:53]} 10. Be3 {[%clk 0:02:53]}  exd4 {[%clk 0:02:53]} 11. cxd4 {[%clk 0:02:53]}  Na5 {[%clk 0:02:54]} 12. Bc2 {[%clk 0:02:53]}  c5 {[%clk 0:02:54]} 13. Nbd2 {[%clk 0:02:40]}  cxd4 {[%clk 0:02:49]} 14. Bxd4 {[%clk 0:02:40]}  Nc6 {[%clk 0:02:50]} 15. Be3 {[%clk 0:02:41]}  d5 {[%clk 0:02:46]} 16. h3 {[%clk 0:02:40]}  Bh5 {[%clk 0:02:45]} 17. exd5 {[%clk 0:02:23]}  Nxd5 {[%clk 0:02:44]} 18. Be4 {[%clk 0:02:13]}  f5 {[%clk 0:02:18]} 19. Bxd5+ {[%clk 0:02:09]}  Qxd5 {[%clk 0:02:17]} 20. Qb3 {[%clk 0:01:49]}  Rad8 {[%clk 0:02:08]} 21. Bb6 {[%clk 0:01:34]}  Qxb3 {[%clk 0:01:32]} 22. Nxb3 {[%clk 0:01:28]}  Rd7 {[%clk 0:01:28]} 23. Rac1 {[%clk 0:01:27]}  Bxf3 {[%clk 0:01:22]} 24. gxf3 {[%clk 0:01:28]}  Nb4 {[%clk 0:01:22]} 25. Rxe7 {[%clk 0:01:07]}  Rxe7 {[%clk 0:01:02]} 26. Bc5 {[%clk 0:01:07]}  Nd3 {[%clk 0:00:43]} 27. Bxe7 {[%clk 0:01:04]}  Nxc1 {[%clk 0:00:44]} 28. Nxc1 {[%clk 0:01:04]}  Re8 {[%clk 0:00:44]} 29. Bb4 {[%clk 0:01:01]}  Kf7 {[%clk 0:00:39]} 30. Nd3 {[%clk 0:00:57]}  Ra8 {[%clk 0:00:39]} 31. Bc3 {[%clk 0:00:53]}  a5 {[%clk 0:00:38]} 32. a3 {[%clk 0:00:53]}  g6 {[%clk 0:00:36]} 33. Kf1 {[%clk 0:00:53]}  Ke6 {[%clk 0:00:37]} 34. Ke2 {[%clk 0:00:50]}  Kd5 {[%clk 0:00:37]} 35. Kd2 {[%clk 0:00:48]}  Kc4 {[%clk 0:00:33]} 36. Kc2 {[%clk 0:00:49]}  Kd5 {[%clk 0:00:20]} 37. h4 {[%clk 0:00:45]}  Kc4 {[%clk 0:00:19]} 38. Ne5+ {[%clk 0:00:38]}  Kd5 {[%clk 0:00:19]} 39. Nd7 {[%clk 0:00:38]}  Ra6 {[%clk 0:00:16]} 40. Nf6+ {[%clk 0:00:36]}  Kc4 {[%clk 0:00:16]} 41. b3+ {[%clk 0:00:36]}  Kc5 {[%clk 0:00:16]} 42. Nxh7 {[%clk 0:00:31]}  b4 {[%clk 0:00:16]} 43. axb4+ {[%clk 0:00:32]}  axb4 {[%clk 0:00:16]} 44. Bb2 {[%clk 0:00:32]}  Re6 {[%clk 0:00:16]} 45. Kd2 {[%clk 0:00:30]}  Rd6+ {[%clk 0:00:17]} 46. Kc2 {[%clk 0:00:28]}  Re6 {[%clk 0:00:17]} 47. Bc1 {[%clk 0:00:29]}  Re2+ {[%clk 0:00:17]} 48. Kd3 {[%clk 0:00:29]}  Re1 {[%clk 0:00:15]} 49. Bd2 {[%clk 0:00:29]}  Rb1 {[%clk 0:00:14]} 50. Kc2 {[%clk 0:00:29]}  Rf1 {[%clk 0:00:14]} 51. Be3+ {[%clk 0:00:29]}  Kd5 {[%clk 0:00:14]} 52. Nf8 {[%clk 0:00:30]}  f4 {[%clk 0:00:14]} 53. Bxf4 {[%clk 0:00:23]}  Rxf2+ {[%clk 0:00:14]} 54. Bd2 {[%clk 0:00:24]}  Rxf3 {[%clk 0:00:13]} 55. Nxg6 {[%clk 0:00:25]}  Rf6 {[%clk 0:00:10]} 56. h5 {[%clk 0:00:24]}  Rb6 {[%clk 0:00:08]} 57. Kd3 {[%clk 0:00:22]}  Rb7 {[%clk 0:00:07]} 58. h6 {[%clk 0:00:21]}  Rd7 {[%clk 0:00:02]} 59. Bxb4 {[%clk 0:00:20]}  Kc6+ {[%clk 0:00:02]} 60. Ke4 {[%clk 0:00:19]}  Rh7 {[%clk 0:00:03]} 61. Bf8 {[%clk 0:00:18]}  Rb7 {[%clk 0:00:04]} 62. b4 {[%clk 0:00:17]}  Kd7 {[%clk 0:00:05]} 63. h7 {[%clk 0:00:17]} 1-0


[Site "https://www.chess.com"]

[Event "Titled Tuesday Blitz February 07 Late 2023"]
[White "Prem, Pranav"]
[Black "Dubov, Daniil"]
[WhiteFideId "30901057"]
[BlackFideId "24126055"]
[WhiteElo "2061"]
[BlackElo "2708"]
[Result "0-1"]
[Round "01"]
[TimeControl "180+2"]
[Date "2023.02.07"]
[WhiteClock "0:00:12"]
[BlackClock "0:00:37"]

1. d4 {[%clk 0:02:59]}  Nf6 {[%clk 0:02:58]} 2. c4 {[%clk 0:02:56]}  d6 {[%clk 0:02:58]} 3. Nc3 {[%clk 0:02:55]}  g6 {[%clk 0:02:59]} 4. e4 {[%clk 0:02:55]}  Bg7 {[%clk 0:02:58]} 5. Nf3 {[%clk 0:02:54]}  O-O {[%clk 0:02:59]} 6. Be2 {[%clk 0:02:54]}  Nc6 {[%clk 0:02:56]} 7. O-O {[%clk 0:02:53]}  Re8 {[%clk 0:02:57]} 8. d5 {[%clk 0:02:42]}  Nb4 {[%clk 0:02:57]} 9. a3 {[%clk 0:02:41]}  Na6 {[%clk 0:02:56]} 10. Qc2 {[%clk 0:02:41]}  e6 {[%clk 0:02:49]} 11. Bg5 {[%clk 0:02:30]}  h6 {[%clk 0:02:47]} 12. Be3 {[%clk 0:02:13]}  Ng4 {[%clk 0:02:42]} 13. Bd2 {[%clk 0:02:07]}  Nc5 {[%clk 0:02:35]} 14. b4 {[%clk 0:01:59]}  Nd7 {[%clk 0:02:35]} 15. Rad1 {[%clk 0:01:53]}  a5 {[%clk 0:02:28]} 16. Rfe1 {[%clk 0:01:45]}  Nde5 {[%clk 0:02:17]} 17. Nxe5 {[%clk 0:01:27]}  Nxe5 {[%clk 0:02:18]} 18. f4 {[%clk 0:01:22]}  Nd7 {[%clk 0:02:18]} 19. Bf3 {[%clk 0:01:22]}  axb4 {[%clk 0:01:49]} 20. axb4 {[%clk 0:01:23]}  Nb6 {[%clk 0:01:49]} 21. Qd3 {[%clk 0:01:10]}  Ra3 {[%clk 0:01:46]} 22. Ra1 {[%clk 0:00:59]}  Rxa1 {[%clk 0:01:42]} 23. Rxa1 {[%clk 0:01:00]}  exd5 {[%clk 0:01:33]} 24. cxd5 {[%clk 0:00:34]}  f5 {[%clk 0:01:33]} 25. Re1 {[%clk 0:00:34]}  Bd7 {[%clk 0:01:28]} 26. Nb5 {[%clk 0:00:25]}  Kh7 {[%clk 0:01:14]} 27. Nd4 {[%clk 0:00:19]}  Qh4 {[%clk 0:00:56]} 28. g3 {[%clk 0:00:17]}  Qf6 {[%clk 0:00:55]} 29. Bc3 {[%clk 0:00:17]}  Na4 {[%clk 0:00:51]} 30. Ba1 {[%clk 0:00:17]}  Qf7 {[%clk 0:00:38]} 31. exf5 {[%clk 0:00:12]}  Rxe1+ {[%clk 0:00:37]} 0-1


[Site "https://www.chess.com"]

[Event "Titled Tuesday Blitz February 07 Late 2023"]
[White "Andreikin, Dmitry"]
[Black "Krishnan, Varun"]
[WhiteFideId "4158814"]
[BlackFideId "5054508"]
[WhiteElo "2729"]
[BlackElo "2341"]
[Result "1-0"]
[Round "01"]
[TimeControl "180+2"]
[Date "2023.02.07"]
[WhiteClock "0:01:25"]
[BlackClock "0:00:05"]

1. Nf3 {[%clk 0:02:54]}  d5 {[%clk 0:02:59]} 2. e3 {[%clk 0:02:53]}  Nf6 {[%clk 0:02:58]} 3. c4 {[%clk 0:02:54]}  e6 {[%clk 0:02:57]} 4. Nc3 {[%clk 0:02:54]}  c6 {[%clk 0:02:55]} 5. a3 {[%clk 0:02:52]}  Nbd7 {[%clk 0:02:55]} 6. b4 {[%clk 0:02:52]}  Bd6 {[%clk 0:02:55]} 7. Bb2 {[%clk 0:02:53]}  O-O {[%clk 0:02:55]} 8. Qc2 {[%clk 0:02:52]}  a6 {[%clk 0:02:50]} 9. Be2 {[%clk 0:02:48]}  e5 {[%clk 0:02:37]} 10. d4 {[%clk 0:02:48]}  e4 {[%clk 0:02:36]} 11. Nd2 {[%clk 0:02:49]}  b5 {[%clk 0:02:31]} 12. c5 {[%clk 0:02:46]}  Bc7 {[%clk 0:02:28]} 13. g4 {[%clk 0:02:45]}  a5 {[%clk 0:02:22]} 14. g5 {[%clk 0:02:43]}  Ne8 {[%clk 0:02:20]} 15. h4 {[%clk 0:02:43]}  axb4 {[%clk 0:02:16]} 16. axb4 {[%clk 0:02:43]}  Rxa1+ {[%clk 0:02:17]} 17. Bxa1 {[%clk 0:02:44]}  f6 {[%clk 0:02:01]} 18. g6 {[%clk 0:02:02]}  hxg6 {[%clk 0:01:47]} 19. h5 {[%clk 0:02:03]}  g5 {[%clk 0:01:42]} 20. Ndxe4 {[%clk 0:02:03]}  dxe4 {[%clk 0:01:38]} 21. Qxe4 {[%clk 0:02:04]}  f5 {[%clk 0:01:29]} 22. Qxc6 {[%clk 0:02:04]}  Ndf6 {[%clk 0:01:05]} 23. h6 {[%clk 0:02:03]}  gxh6 {[%clk 0:00:59]} 24. Rxh6 {[%clk 0:02:01]}  Kg7 {[%clk 0:00:54]} 25. Qh1 {[%clk 0:02:00]}  Bb7 {[%clk 0:00:46]} 26. d5 {[%clk 0:01:45]}  Be5 {[%clk 0:00:29]} 27. c6 {[%clk 0:01:46]}  Ba6 {[%clk 0:00:28]} 28. f4 {[%clk 0:01:44]}  gxf4 {[%clk 0:00:23]} 29. exf4 {[%clk 0:01:45]}  Bd4 {[%clk 0:00:23]} 30. Qh4 {[%clk 0:01:43]}  Rg8 {[%clk 0:00:15]} 31. Rh7+ {[%clk 0:01:32]}  Nxh7 {[%clk 0:00:09]} 32. Qxd8 {[%clk 0:01:32]}  Nhf6 {[%clk 0:00:07]} 33. d6 {[%clk 0:01:28]}  Rh8 {[%clk 0:00:07]} 34. d7 {[%clk 0:01:26]}  Be3 {[%clk 0:00:05]} 35. Qe7+ {[%clk 0:01:25]}  Kg6 {[%clk 0:00:05]} 36. Qxe3 {[%clk 0:01:25]} 1-0


[Site "https://www.chess.com"]

[Event "Titled Tuesday Blitz February 07 Late 2023"]
[White "Hnydiuk, Aleksander"]
[Black "Vachier-Lagrave, Maxime"]
[WhiteFideId "1109057"]
[BlackFideId "623539"]
[WhiteElo "2363"]
[BlackElo "2742"]
[Result "0-1"]
[Round "01"]
[TimeControl "180+2"]
[Date "2023.02.07"]
[WhiteClock "0:00:04"]
[BlackClock "0:00:16"]

1. Nf3 {[%clk 0:02:58]}  Nf6 {[%clk 0:02:55]} 2. c4 {[%clk 0:02:58]}  e6 {[%clk 0:02:50]} 3. g3 {[%clk 0:02:57]}  d5 {[%clk 0:02:50]} 4. d4 {[%clk 0:02:56]}  Be7 {[%clk 0:02:34]} 5. Bg2 {[%clk 0:02:54]}  O-O {[%clk 0:02:31]} 6. O-O {[%clk 0:02:52]}  c6 {[%clk 0:02:30]} 7. Qc2 {[%clk 0:02:51]}  a5 {[%clk 0:02:27]} 8. Nbd2 {[%clk 0:02:49]}  Na6 {[%clk 0:02:24]} 9. e4 {[%clk 0:02:30]}  b5 {[%clk 0:02:11]} 10. c5 {[%clk 0:02:23]}  Nb4 {[%clk 0:02:02]} 11. Qb1 {[%clk 0:02:23]}  dxe4 {[%clk 0:02:01]} 12. Nxe4 {[%clk 0:02:24]}  Bb7 {[%clk 0:01:38]} 13. Bg5 {[%clk 0:01:48]}  Nbd5 {[%clk 0:01:30]} 14. Ne5 {[%clk 0:01:37]}  Qc7 {[%clk 0:01:23]} 15. h4 {[%clk 0:01:31]}  Rad8 {[%clk 0:01:21]} 16. Rd1 {[%clk 0:01:18]}  b4 {[%clk 0:01:12]} 17. Qc2 {[%clk 0:01:17]}  h6 {[%clk 0:01:02]} 18. Nxf6+ {[%clk 0:01:16]}  gxf6 {[%clk 0:00:59]} 19. Bxh6 {[%clk 0:00:48]}  fxe5 {[%clk 0:00:55]} 20. Qe2 {[%clk 0:00:41]}  f5 {[%clk 0:00:51]} 21. Bxf8 {[%clk 0:00:38]}  Bxf8 {[%clk 0:00:50]} 22. Qxe5 {[%clk 0:00:33]}  Qxe5 {[%clk 0:00:47]} 23. dxe5 {[%clk 0:00:34]}  Bxc5 {[%clk 0:00:46]} 24. Rac1 {[%clk 0:00:34]}  Bb6 {[%clk 0:00:45]} 25. Rd2 {[%clk 0:00:22]}  Kf7 {[%clk 0:00:41]} 26. Kh2 {[%clk 0:00:22]}  f4 {[%clk 0:00:31]} 27. g4 {[%clk 0:00:19]}  Bc7 {[%clk 0:00:30]} 28. Re1 {[%clk 0:00:15]}  c5 {[%clk 0:00:30]} 29. Bf3 {[%clk 0:00:14]}  c4 {[%clk 0:00:24]} 30. Kh3 {[%clk 0:00:14]}  Bb6 {[%clk 0:00:24]} 31. Rc1 {[%clk 0:00:11]}  Rc8 {[%clk 0:00:22]} 32. Rdc2 {[%clk 0:00:09]}  Ba6 {[%clk 0:00:22]} 33. g5 {[%clk 0:00:06]}  c3 {[%clk 0:00:22]} 34. bxc3 {[%clk 0:00:07]}  Nxc3 {[%clk 0:00:20]} 35. Kg4 {[%clk 0:00:05]}  Bd3 {[%clk 0:00:20]} 36. Rd2 {[%clk 0:00:05]}  Bf5+ {[%clk 0:00:21]} 37. Kxf4 {[%clk 0:00:05]}  Ne2+ {[%clk 0:00:16]} 38. Bxe2 {[%clk 0:00:04]}  Rxc1 {[%clk 0:00:16]} 39. Rd7+ {[%clk 0:00:04]}  Ke8 {[%clk 0:00:16]} 40. Rd6 {[%clk 0:00:04]}  Bxf2 {[%clk 0:00:15]} 41. Bd3 {[%clk 0:00:03]}  Bxd3 {[%clk 0:00:14]} 42. Rxd3 {[%clk 0:00:04]}  Rc4+ {[%clk 0:00:15]} 43. Kf3 {[%clk 0:00:04]}  Bxh4 {[%clk 0:00:15]} 44. Rd6 {[%clk 0:00:03]}  Kf7 {[%clk 0:00:14]} 45. g6+ {[%clk 0:00:04]}  Kxg6 {[%clk 0:00:14]} 46. Rxe6+ {[%clk 0:00:04]}  Kf5 {[%clk 0:00:15]} 47. Ra6 {[%clk 0:00:05]}  Rc3+ {[%clk 0:00:15]} 48. Ke2 {[%clk 0:00:04]}  Ra3 {[%clk 0:00:16]} 0-1


[Site "https://www.chess.com"]

[Event "Titled Tuesday Blitz February 07 Late 2023"]
[White "Kollars, Dmitrij"]
[Black "Mendez Fortes, Eduardo Jesus"]
[WhiteFideId "12909572"]
[BlackFideId "3502376"]
[WhiteElo "2607"]
[BlackElo "2250"]
[Result "1-0"]
[Round "01"]
[TimeControl "180+2"]
[Date "2023.02.07"]
[WhiteClock "0:00:13"]
[BlackClock "0:00:11"]

1. e4 {[%clk 0:02:59]}  e5 {[%clk 0:02:57]} 2. Nf3 {[%clk 0:03:00]}  Nc6 {[%clk 0:02:56]} 3. Bc4 {[%clk 0:03:00]}  Nf6 {[%clk 0:02:56]} 4. d3 {[%clk 0:03:00]}  Bc5 {[%clk 0:02:56]} 5. Nc3 {[%clk 0:02:59]}  d6 {[%clk 0:02:56]} 6. Na4 {[%clk 0:02:59]}  Bb6 {[%clk 0:02:56]} 7. Nxb6 {[%clk 0:02:58]}  axb6 {[%clk 0:02:56]} 8. O-O {[%clk 0:02:59]}  Ne7 {[%clk 0:02:56]} 9. c3 {[%clk 0:02:57]}  Ng6 {[%clk 0:02:55]} 10. Bb3 {[%clk 0:02:57]}  O-O {[%clk 0:02:55]} 11. Re1 {[%clk 0:02:53]}  h6 {[%clk 0:02:55]} 12. d4 {[%clk 0:02:51]}  Qe7 {[%clk 0:02:54]} 13. Bc2 {[%clk 0:02:46]}  Be6 {[%clk 0:02:48]} 14. a3 {[%clk 0:02:45]}  b5 {[%clk 0:02:45]} 15. h3 {[%clk 0:02:41]}  Rfd8 {[%clk 0:02:36]} 16. Qe2 {[%clk 0:02:38]}  c6 {[%clk 0:02:33]} 17. Be3 {[%clk 0:02:34]}  Nh5 {[%clk 0:02:30]} 18. Qd2 {[%clk 0:01:40]}  Qf6 {[%clk 0:02:12]} 19. Kh2 {[%clk 0:01:36]}  Nhf4 {[%clk 0:02:07]} 20. Ng1 {[%clk 0:01:31]}  h5 {[%clk 0:01:35]} 21. Rad1 {[%clk 0:01:12]}  h4 {[%clk 0:01:30]} 22. g3 {[%clk 0:01:10]}  Re8 {[%clk 0:01:21]} 23. d5 {[%clk 0:01:05]}  cxd5 {[%clk 0:00:50]} 24. gxf4 {[%clk 0:01:04]}  d4 {[%clk 0:00:47]} 25. f5 {[%clk 0:00:58]}  dxe3 {[%clk 0:00:42]} 26. fxe3 {[%clk 0:00:59]}  Ne7 {[%clk 0:00:40]} 27. fxe6 {[%clk 0:00:59]}  Qxe6 {[%clk 0:00:41]} 28. Qxd6 {[%clk 0:00:56]}  Qc4 {[%clk 0:00:40]} 29. Nf3 {[%clk 0:00:49]}  Ng6 {[%clk 0:00:38]} 30. Qd5 {[%clk 0:00:45]}  Qc7 {[%clk 0:00:36]} 31. Qd7 {[%clk 0:00:44]}  Qc5 {[%clk 0:00:36]} 32. Qg4 {[%clk 0:00:43]}  Ra6 {[%clk 0:00:34]} 33. Ng5 {[%clk 0:00:41]}  Rf6 {[%clk 0:00:33]} 34. Re2 {[%clk 0:00:36]}  Qc4 {[%clk 0:00:25]} 35. Qh5 {[%clk 0:00:29]}  Nf8 {[%clk 0:00:18]} 36. Red2 {[%clk 0:00:27]}  Rh6 {[%clk 0:00:16]} 37. Qg4 {[%clk 0:00:25]}  Rg6 {[%clk 0:00:16]} 38. Bd3 {[%clk 0:00:24]}  Qb3 {[%clk 0:00:16]} 39. Qxh4 {[%clk 0:00:24]}  f6 {[%clk 0:00:15]} 40. Nf3 {[%clk 0:00:20]}  Qe6 {[%clk 0:00:15]} 41. Bxb5 {[%clk 0:00:18]}  Rh6 {[%clk 0:00:16]} 42. Qg3 {[%clk 0:00:18]}  Rc8 {[%clk 0:00:16]} 43. Bf1 {[%clk 0:00:15]}  Rc7 {[%clk 0:00:14]} 44. Rd6 {[%clk 0:00:15]}  Qe7 {[%clk 0:00:14]} 45. Rd8 {[%clk 0:00:15]}  g5 {[%clk 0:00:13]} 46. Qg4 {[%clk 0:00:15]}  Kg7 {[%clk 0:00:13]} 47. Qf5 {[%clk 0:00:15]}  Ne6 {[%clk 0:00:12]} 48. R8d6 {[%clk 0:00:14]}  Nc5 {[%clk 0:00:12]} 49. b4 {[%clk 0:00:13]}  Na6 {[%clk 0:00:11]} 50. Rd7 {[%clk 0:00:13]} 1-0


[Site "https://www.chess.com"]